[Event "Titled Tuesday Blitz July 18 Early 2023"]
[White "Gabdushev, Ruslan"]
[Black "Florescu, Codrut-Constantin"]
[WhiteFideId "4137833"]
[BlackFideId "1202200"]
[WhiteElo "2417"]
[BlackElo "2638"]
[Result "1-0"]
[Round "4"]
[TimeControl "180+2"]
[Date "2023.07.18"]
[WhiteClock "0:01:17"]
[BlackClock "0:02:02"]
[Board "90"]

1. g3 {[%clk 0:03:00]}  d5 {[%clk 0:02:59]} 2. Bg2 {[%clk 0:03:00]}  e6 {[%clk 0:03:00]} 3. d3 {[%clk 0:02:53]}  Nf6 {[%clk 0:03:01]} 4. c3 {[%clk 0:02:47]}  Be7 {[%clk 0:03:02]} 5. h3 {[%clk 0:02:45]}  O-O {[%clk 0:03:01]} 6. Nf3 {[%clk 0:02:44]}  c5 {[%clk 0:03:01]} 7. O-O {[%clk 0:02:43]}  Nc6 {[%clk 0:03:02]} 8. Re1 {[%clk 0:02:42]}  Rb8 {[%clk 0:03:02]} 9. a4 {[%clk 0:02:39]}  e5 {[%clk 0:03:00]} 10. e4 {[%clk 0:02:36]}  d4 {[%clk 0:03:00]} 11. Na3 {[%clk 0:02:30]}  h6 {[%clk 0:02:55]} 12. Nc4 {[%clk 0:02:29]}  Qc7 {[%clk 0:02:55]} 13. Ncxe5 {[%clk 0:02:23]}  Nxe5 {[%clk 0:02:53]} 14. Nxe5 {[%clk 0:02:22]}  dxc3 {[%clk 0:02:48]} 15. bxc3 {[%clk 0:02:19]}  b6 {[%clk 0:02:34]} 16. Nc4 {[%clk 0:02:13]}  Qd8 {[%clk 0:02:17]} 17. Bf4 {[%clk 0:02:07]}  Rb7 {[%clk 0:02:17]} 18. a5 {[%clk 0:01:49]}  b5 {[%clk 0:02:16]} 19. a6 {[%clk 0:01:49]}  Rd7 {[%clk 0:02:16]} 20. Ne5 {[%clk 0:01:47]}  Rd6 {[%clk 0:02:16]} 21. Qc2 {[%clk 0:01:26]}  Bxa6 {[%clk 0:02:10]} 22. Nxf7 {[%clk 0:01:20]}  Rb6 {[%clk 0:02:05]} 23. Nxd8 {[%clk 0:01:19]}  Rxd8 {[%clk 0:02:02]} 24. Bc7 {[%clk 0:01:17]} 1-0


[Site "https://www.chess.com"]

[Event "Titled Tuesday Blitz July 18 Early 2023"]
[White "Mazurkiewicz, Michal"]
[Black "Mendez Fortes, Eduardo Jesus"]
[WhiteFideId "1124943"]
[BlackFideId "3502376"]
[WhiteElo "2416"]
[BlackElo "2636"]
[Result "1-0"]
[Round "4"]
[TimeControl "180+2"]
[Date "2023.07.18"]
[WhiteClock "0:00:12"]
[BlackClock "0:00:13"]
[Board "91"]

1. e4 {[%clk 0:02:59]}  c5 {[%clk 0:02:54]} 2. Nf3 {[%clk 0:03:00]}  d6 {[%clk 0:02:54]} 3. g3 {[%clk 0:03:00]}  Nc6 {[%clk 0:02:53]} 4. Bg2 {[%clk 0:03:01]}  g6 {[%clk 0:02:47]} 5. O-O {[%clk 0:03:00]}  Bg7 {[%clk 0:02:47]} 6. d3 {[%clk 0:03:01]}  e6 {[%clk 0:02:45]} 7. c3 {[%clk 0:03:01]}  Nge7 {[%clk 0:02:44]} 8. d4 {[%clk 0:03:01]}  cxd4 {[%clk 0:02:44]} 9. cxd4 {[%clk 0:03:02]}  d5 {[%clk 0:02:45]} 10. e5 {[%clk 0:03:02]}  O-O {[%clk 0:02:44]} 11. Nc3 {[%clk 0:03:00]}  h6 {[%clk 0:02:44]} 12. h4 {[%clk 0:02:58]}  Rb8 {[%clk 0:02:35]} 13. a4 {[%clk 0:02:56]}  Nf5 {[%clk 0:02:29]} 14. Bh3 {[%clk 0:02:56]}  a6 {[%clk 0:02:23]} 15. Bxf5 {[%clk 0:02:53]}  exf5 {[%clk 0:02:21]} 16. Bf4 {[%clk 0:02:52]}  Be6 {[%clk 0:02:20]} 17. Qd2 {[%clk 0:02:52]}  Kh7 {[%clk 0:02:19]} 18. Kg2 {[%clk 0:02:26]}  Na5 {[%clk 0:02:14]} 19. Qe2 {[%clk 0:01:57]}  Qb6 {[%clk 0:02:09]} 20. Rh1 {[%clk 0:01:46]}  Rfc8 {[%clk 0:01:21]} 21. h5 {[%clk 0:01:28]}  g5 {[%clk 0:01:21]} 22. Bxg5 {[%clk 0:01:25]}  hxg5 {[%clk 0:01:22]} 23. Nxg5+ {[%clk 0:01:25]}  Kh8 {[%clk 0:01:22]} 24. h6 {[%clk 0:01:24]}  Bf8 {[%clk 0:01:22]} 25. Qh5 {[%clk 0:01:15]}  Qc7 {[%clk 0:01:18]} 26. Ne2 {[%clk 0:01:11]}  Qe7 {[%clk 0:00:29]} 27. Nf4 {[%clk 0:01:07]}  Nc6 {[%clk 0:00:29]} 28. Ngxe6 {[%clk 0:01:03]}  b5 {[%clk 0:00:21]} 29. Ng5 {[%clk 0:00:59]}  Rc7 {[%clk 0:00:20]} 30. axb5 {[%clk 0:00:46]}  axb5 {[%clk 0:00:19]} 31. Rac1 {[%clk 0:00:39]}  Rbc8 {[%clk 0:00:18]} 32. Nxd5 {[%clk 0:00:38]}  Qd7 {[%clk 0:00:18]} 33. Nxc7 {[%clk 0:00:36]}  Rxc7 {[%clk 0:00:19]} 34. Nxf7+ {[%clk 0:00:31]}  Kh7 {[%clk 0:00:19]} 35. Ng5+ {[%clk 0:00:25]}  Kh8 {[%clk 0:00:19]} 36. e6 {[%clk 0:00:24]}  Qd5+ {[%clk 0:00:18]} 37. Qf3 {[%clk 0:00:23]}  Qd6 {[%clk 0:00:18]} 38. Qxf5 {[%clk 0:00:21]}  Nxd4 {[%clk 0:00:17]} 39. Qf6+ {[%clk 0:00:21]}  Kg8 {[%clk 0:00:17]} 40. Qg6+ {[%clk 0:00:21]}  Kh8 {[%clk 0:00:17]} 41. Rxc7 {[%clk 0:00:15]}  Qd5+ {[%clk 0:00:16]} 42. f3 {[%clk 0:00:15]}  Nxe6 {[%clk 0:00:13]} 43. Nf7# {[%clk 0:00:12]} 1-0


[Site "https://www.chess.com"]

[Event "Titled Tuesday Blitz July 18 Early 2023"]
[White "Bendayan Claros, Aaron"]
[Black "Mohamed Anees M"]
[WhiteFideId "3803392"]
[BlackFideId "35065815"]
[WhiteElo "2382"]
[BlackElo "2632"]
[Result "1-0"]
[Round "4"]
[TimeControl "180+2"]
[Date "2023.07.18"]
[WhiteClock "0:00:46"]
[BlackClock "0:02:16"]
[Board "92"]

1. d4 {[%clk 0:03:00]}  Nf6 {[%clk 0:02:59]} 2. Nf3 {[%clk 0:03:00]}  e6 {[%clk 0:02:58]} 3. e3 {[%clk 0:03:00]}  c5 {[%clk 0:02:58]} 4. Bd3 {[%clk 0:02:56]}  Nc6 {[%clk 0:02:58]} 5. O-O {[%clk 0:02:56]}  b6 {[%clk 0:02:57]} 6. c4 {[%clk 0:02:56]}  cxd4 {[%clk 0:02:57]} 7. exd4 {[%clk 0:02:56]}  d5 {[%clk 0:02:58]} 8. cxd5 {[%clk 0:02:25]}  Nxd5 {[%clk 0:02:57]} 9. Nc3 {[%clk 0:02:10]}  Be7 {[%clk 0:02:57]} 10. Bb5 {[%clk 0:02:07]}  Qd7 {[%clk 0:02:56]} 11. Ne5 {[%clk 0:02:06]}  Nxe5 {[%clk 0:02:53]} 12. Bxd7+ {[%clk 0:02:06]}  Nxd7 {[%clk 0:02:54]} 13. Nxd5 {[%clk 0:02:05]}  exd5 {[%clk 0:02:55]} 14. Re1 {[%clk 0:02:05]}  Nf6 {[%clk 0:02:54]} 15. Qe2 {[%clk 0:02:00]}  Be6 {[%clk 0:02:53]} 16. Be3 {[%clk 0:01:54]}  O-O {[%clk 0:02:53]} 17. Rac1 {[%clk 0:01:54]}  h6 {[%clk 0:02:48]} 18. Qa6 {[%clk 0:01:53]}  Bc8 {[%clk 0:02:46]} 19. Qa4 {[%clk 0:01:49]}  Bd7 {[%clk 0:02:46]} 20. Qa6 {[%clk 0:01:47]}  Bc8 {[%clk 0:02:46]} 21. Qd3 {[%clk 0:01:47]}  Bd6 {[%clk 0:02:45]} 22. Rc6 {[%clk 0:01:43]}  Bb4 {[%clk 0:02:45]} 23. Rec1 {[%clk 0:01:41]}  Be6 {[%clk 0:02:45]} 24. a3 {[%clk 0:01:38]}  Be7 {[%clk 0:02:45]} 25. f3 {[%clk 0:01:36]}  Rfd8 {[%clk 0:02:42]} 26. Qa6 {[%clk 0:01:30]}  Bd7 {[%clk 0:02:41]} 27. Rc7 {[%clk 0:01:30]}  Bd6 {[%clk 0:02:39]} 28. Rxa7 {[%clk 0:01:27]}  Rxa7 {[%clk 0:02:38]} 29. Qxa7 {[%clk 0:01:27]}  b5 {[%clk 0:02:39]} 30. Qb6 {[%clk 0:01:24]}  Be7 {[%clk 0:02:39]} 31. Bf4 {[%clk 0:01:17]}  Be8 {[%clk 0:02:34]} 32. Be5 {[%clk 0:01:11]}  Nd7 {[%clk 0:02:32]} 33. Qc7 {[%clk 0:01:05]}  Kf8 {[%clk 0:02:32]} 34. Bd6 {[%clk 0:01:04]}  Bxd6 {[%clk 0:02:30]} 35. Qxd8 {[%clk 0:01:04]}  Bf4 {[%clk 0:02:29]} 36. Re1 {[%clk 0:01:03]}  Nf6 {[%clk 0:02:29]} 37. g3 {[%clk 0:00:57]}  Bd2 {[%clk 0:02:28]} 38. Re2 {[%clk 0:00:55]}  Bc1 {[%clk 0:02:29]} 39. Qc7 {[%clk 0:00:46]}  Bg5 {[%clk 0:02:16]} 40. h4 {[%clk 0:00:46]} 1-0


[Site "https://www.chess.com"]

[Event "Titled Tuesday Blitz July 18 Early 2023"]
[White "Jiang, Andrew"]
[Black "Frolyanov, Dmitry"]
[WhiteFideId "30953510"]
[BlackFideId "4151976"]
[WhiteElo "2376"]
[BlackElo "2631"]
[Result "1-0"]
[Round "4"]
[TimeControl "180+2"]
[Date "2023.07.18"]
[WhiteClock "0:01:04"]
[BlackClock "0:00:14"]
[Board "93"]

1. e4 {[%clk 0:02:59]}  e5 {[%clk 0:02:59]} 2. Nf3 {[%clk 0:02:58]}  Nf6 {[%clk 0:02:58]} 3. Nc3 {[%clk 0:02:58]}  Nc6 {[%clk 0:02:58]} 4. a3 {[%clk 0:02:59]}  g6 {[%clk 0:02:56]} 5. d4 {[%clk 0:02:55]}  exd4 {[%clk 0:02:55]} 6. Nxd4 {[%clk 0:02:56]}  Bg7 {[%clk 0:02:48]} 7. Nxc6 {[%clk 0:02:52]}  bxc6 {[%clk 0:02:49]} 8. Bd3 {[%clk 0:02:52]}  O-O {[%clk 0:02:46]} 9. O-O {[%clk 0:02:52]}  d5 {[%clk 0:02:44]} 10. exd5 {[%clk 0:02:52]}  cxd5 {[%clk 0:02:45]} 11. h3 {[%clk 0:02:45]}  c6 {[%clk 0:02:40]} 12. Rb1 {[%clk 0:02:45]}  Nd7 {[%clk 0:02:31]} 13. Ne2 {[%clk 0:02:27]}  Ne5 {[%clk 0:02:29]} 14. Ng3 {[%clk 0:02:25]}  Nxd3 {[%clk 0:02:22]} 15. Qxd3 {[%clk 0:02:23]}  a5 {[%clk 0:02:23]} 16. Rd1 {[%clk 0:02:19]}  Ba6 {[%clk 0:02:22]} 17. Qf3 {[%clk 0:02:18]}  Rb8 {[%clk 0:02:14]} 18. b3 {[%clk 0:02:16]}  a4 {[%clk 0:02:11]} 19. Bf4 {[%clk 0:02:16]}  Rb7 {[%clk 0:02:05]} 20. c4 {[%clk 0:02:15]}  Rd7 {[%clk 0:01:38]} 21. cxd5 {[%clk 0:02:13]}  cxd5 {[%clk 0:01:14]} 22. bxa4 {[%clk 0:02:10]}  Qa5 {[%clk 0:01:13]} 23. Rb4 {[%clk 0:01:57]}  Re8 {[%clk 0:01:08]} 24. Be3 {[%clk 0:01:46]}  Qd8 {[%clk 0:00:42]} 25. Bd4 {[%clk 0:01:41]}  Bf8 {[%clk 0:00:42]} 26. Rb6 {[%clk 0:01:37]}  Rd6 {[%clk 0:00:35]} 27. Rxd6 {[%clk 0:01:25]}  Qxd6 {[%clk 0:00:36]} 28. Rb1 {[%clk 0:01:13]}  Bc4 {[%clk 0:00:34]} 29. Rb6 {[%clk 0:01:09]}  Qxa3 {[%clk 0:00:14]} 30. Qf6 {[%clk 0:01:04]} 1-0


[Site "https://www.chess.com"]

[Event "Titled Tuesday Blitz July 18 Early 2023"]
[White "Suleymanli, Suleyman"]
[Black "Wernberg, Hugo"]
[WhiteFideId "13416375"]
[BlackFideId "1737511"]
[WhiteElo "2629"]
[BlackElo "2375"]
[Result "1-0"]
[Round "4"]
[TimeControl "180+2"]
[Date "2023.07.18"]
[WhiteClock "0:02:29"]
[BlackClock "0:00:01"]
[Board "94"]

1. Nf3 {[%clk 0:03:00]}  d5 {[%clk 0:03:00]} 2. g3 {[%clk 0:03:01]}  Nf6 {[%clk 0:02:56]} 3. Bg2 {[%clk 0:03:01]}  c5 {[%clk 0:02:57]} 4. O-O {[%clk 0:03:02]}  g6 {[%clk 0:02:57]} 5. d4 {[%clk 0:03:03]}  cxd4 {[%clk 0:02:56]} 6. Nxd4 {[%clk 0:03:04]}  Bg7 {[%clk 0:02:56]} 7. c4 {[%clk 0:03:04]}  dxc4 {[%clk 0:02:45]} 8. Nc3 {[%clk 0:03:05]}  O-O {[%clk 0:02:41]} 9. Ndb5 {[%clk 0:03:05]}  Nc6 {[%clk 0:02:28]} 10. Qxd8 {[%clk 0:02:58]}  Rxd8 {[%clk 0:02:25]} 11. Nc7 {[%clk 0:02:59]}  Rb8 {[%clk 0:02:23]} 12. Bf4 {[%clk 0:03:00]}  e5 {[%clk 0:02:17]} 13. Bg5 {[%clk 0:03:00]}  Ne7 {[%clk 0:01:34]} 14. Rfd1 {[%clk 0:02:55]}  Bg4 {[%clk 0:01:25]} 15. h3 {[%clk 0:02:50]}  Bd7 {[%clk 0:01:16]} 16. N3d5 {[%clk 0:02:38]}  Nexd5 {[%clk 0:00:36]} 17. Nxd5 {[%clk 0:02:37]}  Nxd5 {[%clk 0:00:32]} 18. Bxd8 {[%clk 0:02:35]}  Rxd8 {[%clk 0:00:25]} 19. Rxd5 {[%clk 0:02:35]}  Kf8 {[%clk 0:00:24]} 20. Rad1 {[%clk 0:02:33]}  Ke7 {[%clk 0:00:24]} 21. R5d2 {[%clk 0:02:32]}  b6 {[%clk 0:00:20]} 22. Bc6 {[%clk 0:02:32]}  Bxc6 {[%clk 0:00:19]} 23. Rxd8 {[%clk 0:02:32]}  e4 {[%clk 0:00:17]} 24. Rc8 {[%clk 0:02:31]}  Bb5 {[%clk 0:00:16]} 25. Rc7+ {[%clk 0:02:32]}  Ke6 {[%clk 0:00:16]} 26. b3 {[%clk 0:02:31]}  c3 {[%clk 0:00:16]} 27. e3 {[%clk 0:02:28]}  Bd3 {[%clk 0:00:13]} 28. Rc1 {[%clk 0:02:29]}  Kd6 {[%clk 0:00:10]} 29. R7xc3 {[%clk 0:02:24]}  Bxc3 {[%clk 0:00:10]} 30. Rxc3 {[%clk 0:02:25]}  Bb1 {[%clk 0:00:08]} 31. a3 {[%clk 0:02:25]}  a5 {[%clk 0:00:06]} 32. b4 {[%clk 0:02:25]}  axb4 {[%clk 0:00:07]} 33. axb4 {[%clk 0:02:26]}  Bd3 {[%clk 0:00:05]} 34. f3 {[%clk 0:02:26]}  Kd5 {[%clk 0:00:04]} 35. fxe4+ {[%clk 0:02:26]}  Kxe4 {[%clk 0:00:05]} 36. Kf2 {[%clk 0:02:27]}  h5 {[%clk 0:00:05]} 37. Rc7 {[%clk 0:02:27]}  f6 {[%clk 0:00:03]} 38. Rc6 {[%clk 0:02:27]}  Ke5 {[%clk 0:00:02]} 39. Rxb6 {[%clk 0:02:27]}  Bf5 {[%clk 0:00:02]} 40. h4 {[%clk 0:02:26]}  g5 {[%clk 0:00:03]} 41. hxg5 {[%clk 0:02:27]}  fxg5 {[%clk 0:00:03]} 42. b5 {[%clk 0:02:28]}  h4 {[%clk 0:00:04]} 43. gxh4 {[%clk 0:02:28]}  gxh4 {[%clk 0:00:05]} 44. Rb8 {[%clk 0:02:29]}  Be4 {[%clk 0:00:05]} 45. b6 {[%clk 0:02:29]}  Kd6 {[%clk 0:00:05]} 46. Re8 {[%clk 0:02:30]}  Bf5 {[%clk 0:00:01]} 47. b7 {[%clk 0:02:29]} 1-0


[Site "https://www.chess.com"]

[Event "Titled Tuesday Blitz July 18 Early 2023"]
[White "Glavina, Pablo"]
[Black "Chen, Justin"]
[WhiteFideId "100234"]
[BlackFideId "2098199"]
[WhiteElo "2371"]
[BlackElo "2625"]
[Result "1-0"]
[Round "4"]
[TimeControl "180+2"]
[Date "2023.07.18"]
[WhiteClock "0:00:21"]
[BlackClock "0:00:01"]
[Board "95"]

1. c4 {[%clk 0:02:58]}  e5 {[%clk 0:02:59]} 2. Nc3 {[%clk 0:02:57]}  Nf6 {[%clk 0:03:00]} 3. Nf3 {[%clk 0:02:56]}  e4 {[%clk 0:03:00]} 4. Ng5 {[%clk 0:02:54]}  c6 {[%clk 0:03:01]} 5. Ngxe4 {[%clk 0:02:54]}  Nxe4 {[%clk 0:03:01]} 6. Nxe4 {[%clk 0:02:55]}  d5 {[%clk 0:03:02]} 7. cxd5 {[%clk 0:02:55]}  cxd5 {[%clk 0:03:03]} 8. Ng3 {[%clk 0:02:56]}  h5 {[%clk 0:03:03]} 9. e3 {[%clk 0:02:55]}  h4 {[%clk 0:03:02]} 10. Ne2 {[%clk 0:02:55]}  Nc6 {[%clk 0:03:03]} 11. d4 {[%clk 0:02:47]}  Qf6 {[%clk 0:02:54]} 12. Nf4 {[%clk 0:02:42]}  Bd6 {[%clk 0:02:30]} 13. Nxd5 {[%clk 0:02:41]}  Qg6 {[%clk 0:02:31]} 14. a3 {[%clk 0:02:25]}  Bf5 {[%clk 0:02:26]} 15. f3 {[%clk 0:02:09]}  Bxh2 {[%clk 0:00:35]} 16. Rxh2 {[%clk 0:01:34]}  Qg3+ {[%clk 0:00:35]} 17. Ke2 {[%clk 0:01:35]}  Qxh2 {[%clk 0:00:36]} 18. e4 {[%clk 0:01:35]}  Be6 {[%clk 0:00:34]} 19. Bf4 {[%clk 0:01:35]}  Qg1 {[%clk 0:00:27]} 20. Be3 {[%clk 0:01:27]}  Qh2 {[%clk 0:00:25]} 21. Nc7+ {[%clk 0:01:26]}  Qxc7 {[%clk 0:00:25]} 22. d5 {[%clk 0:01:23]}  O-O-O {[%clk 0:00:17]} 23. Qb3 {[%clk 0:00:55]}  Kb8 {[%clk 0:00:15]} 24. dxe6 {[%clk 0:00:27]}  fxe6 {[%clk 0:00:16]} 25. Kf2 {[%clk 0:00:27]}  h3 {[%clk 0:00:09]} 26. gxh3 {[%clk 0:00:25]}  Ka8 {[%clk 0:00:05]} 27. Rc1 {[%clk 0:00:25]}  Qh2+ {[%clk 0:00:04]} 28. Bg2 {[%clk 0:00:24]}  Rc8 {[%clk 0:00:04]} 29. Qxe6 {[%clk 0:00:23]}  Rhf8 {[%clk 0:00:04]} 30. b4 {[%clk 0:00:20]}  g5 {[%clk 0:00:01]} 31. b5 {[%clk 0:00:20]}  Nb8 {[%clk 0:00:01]} 32. Rxc8 {[%clk 0:00:19]}  Rxc8 {[%clk 0:00:01]} 33. Qxc8 {[%clk 0:00:20]}  Qe5 {[%clk 0:00:02]} 34. Qc5 {[%clk 0:00:18]}  Qb2+ {[%clk 0:00:02]} 35. Kg3 {[%clk 0:00:19]}  b6 {[%clk 0:00:01]} 36. Qd5+ {[%clk 0:00:19]}  Nc6 {[%clk 0:00:02]} 37. Qxc6+ {[%clk 0:00:19]}  Kb8 {[%clk 0:00:03]} 38. Bxg5 {[%clk 0:00:19]}  Qe5+ {[%clk 0:00:01]} 39. Bf4 {[%clk 0:00:19]}  Qxf4+ {[%clk 0:00:01]} 40. Kxf4 {[%clk 0:00:20]}  a5 {[%clk 0:00:02]} 41. bxa6 {[%clk 0:00:20]}  b5 {[%clk 0:00:01]} 42. Qb7# {[%clk 0:00:21]} 1-0


[Site "https://www.chess.com"]

[Event "Titled Tuesday Blitz July 18 Early 2023"]
[White "Der_Balak_3Halak"]
[Black "Zaim, Marian"]
[BlackFideId "1204114"]
[WhiteElo "2618"]
[BlackElo "2309"]
[Result "1/2-1/2"]
[Round "4"]
[TimeControl "180+2"]
[Date "2023.07.18"]
[WhiteClock "0:00:09"]
[BlackClock "0:00:22"]
[Board "96"]

1. c3 {[%clk 0:03:00]}  g6 {[%clk 0:02:55]} 2. e4 {[%clk 0:02:58]}  Bg7 {[%clk 0:02:56]} 3. d4 {[%clk 0:02:58]}  Nf6 {[%clk 0:02:54]} 4. Bd3 {[%clk 0:02:57]}  c5 {[%clk 0:02:52]} 5. Nf3 {[%clk 0:02:56]}  O-O {[%clk 0:02:50]} 6. O-O {[%clk 0:02:56]}  d6 {[%clk 0:02:51]} 7. h3 {[%clk 0:02:41]}  Nc6 {[%clk 0:02:48]} 8. Be3 {[%clk 0:02:39]}  b6 {[%clk 0:02:40]} 9. d5 {[%clk 0:02:33]}  Ne5 {[%clk 0:02:36]} 10. Nxe5 {[%clk 0:02:30]}  dxe5 {[%clk 0:02:36]} 11. Nd2 {[%clk 0:02:26]}  Ne8 {[%clk 0:02:35]} 12. a4 {[%clk 0:02:20]}  Nd6 {[%clk 0:02:29]} 13. Nc4 {[%clk 0:02:18]}  f5 {[%clk 0:02:26]} 14. f3 {[%clk 0:02:12]}  Bf6 {[%clk 0:02:15]} 15. Qd2 {[%clk 0:02:03]}  f4 {[%clk 0:02:06]} 16. Bf2 {[%clk 0:02:03]}  g5 {[%clk 0:02:07]} 17. b4 {[%clk 0:02:00]}  cxb4 {[%clk 0:02:02]} 18. cxb4 {[%clk 0:02:00]}  Bd7 {[%clk 0:01:53]} 19. a5 {[%clk 0:01:52]}  b5 {[%clk 0:01:46]} 20. Nxd6 {[%clk 0:01:41]}  exd6 {[%clk 0:01:46]} 21. a6 {[%clk 0:01:39]}  Qb8 {[%clk 0:01:41]} 22. Qe2 {[%clk 0:01:34]}  Rc8 {[%clk 0:01:37]} 23. Ra5 {[%clk 0:01:34]}  Bd8 {[%clk 0:01:36]} 24. Rxb5 {[%clk 0:01:32]}  Bxb5 {[%clk 0:01:36]} 25. Bxb5 {[%clk 0:01:33]}  Bb6 {[%clk 0:01:30]} 26. Bc6 {[%clk 0:01:03]}  Bxf2+ {[%clk 0:01:29]} 27. Qxf2 {[%clk 0:01:04]}  Qxb4 {[%clk 0:01:28]} 28. Bxa8 {[%clk 0:01:03]}  Rxa8 {[%clk 0:01:28]} 29. Rc1 {[%clk 0:00:58]}  Qb6 {[%clk 0:01:16]} 30. Qxb6 {[%clk 0:00:51]}  axb6 {[%clk 0:01:16]} 31. Rc6 {[%clk 0:00:24]}  Rxa6 {[%clk 0:01:16]} 32. Rxd6 {[%clk 0:00:18]}  Ra1+ {[%clk 0:01:05]} 33. Kh2 {[%clk 0:00:18]}  Rb1 {[%clk 0:01:04]} 34. Re6 {[%clk 0:00:18]}  b5 {[%clk 0:01:01]} 35. Rxe5 {[%clk 0:00:19]}  b4 {[%clk 0:01:02]} 36. Rxg5+ {[%clk 0:00:18]}  Kf7 {[%clk 0:01:03]} 37. Rh5 {[%clk 0:00:15]}  b3 {[%clk 0:00:57]} 38. Rxh7+ {[%clk 0:00:15]}  Ke8 {[%clk 0:00:57]} 39. Rb7 {[%clk 0:00:15]}  b2 {[%clk 0:00:57]} 40. e5 {[%clk 0:00:15]}  Kd8 {[%clk 0:00:49]} 41. d6 {[%clk 0:00:15]}  Kc8 {[%clk 0:00:49]} 42. Rb6 {[%clk 0:00:15]}  Kd7 {[%clk 0:00:49]} 43. h4 {[%clk 0:00:15]}  Ke6 {[%clk 0:00:47]} 44. h5 {[%clk 0:00:15]}  Re1 {[%clk 0:00:46]} 45. Rxb2 {[%clk 0:00:14]}  Rxe5 {[%clk 0:00:46]} 46. Rd2 {[%clk 0:00:11]}  Rxh5+ {[%clk 0:00:45]} 47. Kg1 {[%clk 0:00:12]}  Kd7 {[%clk 0:00:45]} 48. Kf2 {[%clk 0:00:11]}  Re5 {[%clk 0:00:43]} 49. Rd4 {[%clk 0:00:11]}  Rf5 {[%clk 0:00:43]} 50. Ke2 {[%clk 0:00:11]}  Rf6 {[%clk 0:00:43]} 51. Kd3 {[%clk 0:00:10]}  Rg6 {[%clk 0:00:38]} 52. Ke4 {[%clk 0:00:10]}  Rxg2 {[%clk 0:00:38]} 53. Kxf4 {[%clk 0:00:11]}  Rg8 {[%clk 0:00:37]} 54. Kf5 {[%clk 0:00:10]}  Rf8+ {[%clk 0:00:37]} 55. Ke4 {[%clk 0:00:10]}  Re8+ {[%clk 0:00:37]} 56. Kd3 {[%clk 0:00:10]}  Rf8 {[%clk 0:00:37]} 57. Ke2 {[%clk 0:00:11]}  Re8+ {[%clk 0:00:36]} 58. Kf2 {[%clk 0:00:11]}  Ra8 {[%clk 0:00:36]} 59. f4 {[%clk 0:00:11]}  Ra3 {[%clk 0:00:35]} 60. f5 {[%clk 0:00:11]}  Ra5 {[%clk 0:00:33]} 61. Rf4 {[%clk 0:00:08]}  Kxd6 {[%clk 0:00:33]} 62. f6 {[%clk 0:00:08]}  Ra8 {[%clk 0:00:32]} 63. Kg3 {[%clk 0:00:08]}  Ke6 {[%clk 0:00:28]} 64. Kg4 {[%clk 0:00:08]}  Rg8+ {[%clk 0:00:27]} 65. Kh5 {[%clk 0:00:08]}  Kf7 {[%clk 0:00:22]} 66. Kh6 {[%clk 0:00:08]}  Rg6+ {[%clk 0:00:21]} 67. Kh5 {[%clk 0:00:08]}  Rxf6 {[%clk 0:00:21]} 68. Rxf6+ {[%clk 0:00:09]}  Kxf6 {[%clk 0:00:22]} 1/2-1/2


[Site "https://www.chess.com"]

[Event "Titled Tuesday Blitz July 18 Early 2023"]
[White "Sanchez Alvares, Kelvin Antonio"]
[Black "Da Silva Junior, Sediney Mari"]
[WhiteFideId "3906680"]
[BlackFideId "2132079"]
[WhiteElo "2608"]
[BlackElo "2196"]
[Result "1-0"]
[Round "4"]
[TimeControl "180+2"]
[Date "2023.07.18"]
[WhiteClock "0:01:34"]
[BlackClock "0:02:31"]
[Board "99"]

1. e4 {[%clk 0:03:00]}  e6 {[%clk 0:03:00]} 2. d4 {[%clk 0:03:00]}  d5 {[%clk 0:03:00]} 3. Nc3 {[%clk 0:03:01]}  Bb4 {[%clk 0:02:59]} 4. Ne2 {[%clk 0:03:01]}  dxe4 {[%clk 0:02:58]} 5. a3 {[%clk 0:03:01]}  Bxc3+ {[%clk 0:02:56]} 6. Nxc3 {[%clk 0:03:02]}  Nf6 {[%clk 0:02:55]} 7. Bg5 {[%clk 0:03:02]}  Nbd7 {[%clk 0:02:55]} 8. Nxe4 {[%clk 0:03:02]}  h6 {[%clk 0:02:55]} 9. Bh4 {[%clk 0:02:56]}  g5 {[%clk 0:02:56]} 10. Nxf6+ {[%clk 0:02:56]}  Qxf6 {[%clk 0:02:55]} 11. Bg3 {[%clk 0:02:56]}  c6 {[%clk 0:02:56]} 12. c3 {[%clk 0:02:52]}  O-O {[%clk 0:02:55]} 13. Bd3 {[%clk 0:02:52]}  e5 {[%clk 0:02:56]} 14. O-O {[%clk 0:02:48]}  exd4 {[%clk 0:02:56]} 15. cxd4 {[%clk 0:02:49]}  Nb6 {[%clk 0:02:55]} 16. Be5 {[%clk 0:02:48]}  Qe6 {[%clk 0:02:52]} 17. Qh5 {[%clk 0:02:46]}  f5 {[%clk 0:02:52]} 18. h4 {[%clk 0:02:29]}  gxh4 {[%clk 0:02:50]} 19. Rfe1 {[%clk 0:02:24]}  Bd7 {[%clk 0:02:50]} 20. Bf4 {[%clk 0:02:17]}  Qf7 {[%clk 0:02:49]} 21. Qxh4 {[%clk 0:02:15]}  Rfe8 {[%clk 0:02:44]} 22. Bxh6 {[%clk 0:02:13]}  Nd5 {[%clk 0:02:38]} 23. Re5 {[%clk 0:01:41]}  Rxe5 {[%clk 0:02:36]} 24. dxe5 {[%clk 0:01:41]}  Re8 {[%clk 0:02:35]} 25. Re1 {[%clk 0:01:41]}  Re6 {[%clk 0:02:35]} 26. Bg5 {[%clk 0:01:37]}  Qh7 {[%clk 0:02:31]} 27. Qxh7+ {[%clk 0:01:34]} 1-0


[Site "https://www.chess.com"]

[Event "Titled Tuesday Blitz July 18 Early 2023"]
[White "Movahed, Sina"]
[Black "Ionescu, Mihai"]
[WhiteFideId "42520835"]
[BlackFideId "1202499"]
[WhiteElo "2986"]
[BlackElo "2546"]
[Result "1-0"]
[Round "4"]
[TimeControl "180+2"]
[Date "2023.07.18"]
[WhiteClock "0:02:33"]
[BlackClock "0:01:06"]
[Board "101"]

1. e4 {[%clk 0:03:00]}  c5 {[%clk 0:02:59]} 2. Nf3 {[%clk 0:03:00]}  d6 {[%clk 0:02:59]} 3. d4 {[%clk 0:03:01]}  cxd4 {[%clk 0:03:00]} 4. Nxd4 {[%clk 0:03:02]}  Nf6 {[%clk 0:03:00]} 5. Nc3 {[%clk 0:03:02]}  g6 {[%clk 0:03:00]} 6. Be3 {[%clk 0:03:03]}  Bg7 {[%clk 0:02:59]} 7. f3 {[%clk 0:03:03]}  h5 {[%clk 0:02:55]} 8. Qd2 {[%clk 0:03:02]}  Nc6 {[%clk 0:02:56]} 9. O-O-O {[%clk 0:02:59]}  a6 {[%clk 0:02:50]} 10. Nxc6 {[%clk 0:02:55]}  bxc6 {[%clk 0:02:49]} 11. e5 {[%clk 0:02:56]}  Nd7 {[%clk 0:02:34]} 12. exd6 {[%clk 0:02:53]}  exd6 {[%clk 0:02:27]} 13. Qxd6 {[%clk 0:02:51]}  Bxc3 {[%clk 0:02:19]} 14. bxc3 {[%clk 0:02:48]}  Qa5 {[%clk 0:02:19]} 15. Bd4 {[%clk 0:02:43]}  f6 {[%clk 0:01:29]} 16. Bc4 {[%clk 0:02:36]}  Ne5 {[%clk 0:01:06]} 17. Rhe1 {[%clk 0:02:33]} 1-0


[Site "https://www.chess.com"]